[Event "Western Asian Girls Chess-ch 2023"]
[Site "Colombo"]
[Date "2023.12.03"]
[Round "6.3"]
[White "Sachi Jain"]
[Black "Pallie, Ehsha Mishela"]
[Result "1/2-1/2"]
[ECO "B93"]
[WhiteElo "1743"]
[BlackElo "1569"]
[Annotator "NA RC"]
[PlyCount "110"]
[EventDate "2023.11.30"]
[EventCountry "SRI"]
[SourceTitle "playchess.com"]
[Source "ChessBase"]
[SourceQuality "1"]
[TimeControl "5400+30"]

1. e4 {[%emt 0:02:12]} c5 {[%emt 0:00:11]} 2. Nf3 {[%emt 0:00:07]} d6 {[%emt 1:31:19]} 3. d4 {[%emt 0:00:04]} cxd4 {[%emt 0:00:00]} 4. Nxd4 {[%emt 0:00:05]} Nf6 {[%emt 0:00:00]} 5. Nc3 {[%emt 0:00:04]} a6 {[%emt 0:00:00]} 6. f4 {[%emt 0:00:12]} Qc7 {[%emt 0:00:00]} 7. Nf3 {[%emt 0:00:25]} g6 {[%emt 0:00:00]} 8. Bd3 {[%emt 0:00:34]} Bg7 {[%emt 0:00:00]} 9. O-O {[%emt 0:00:31]} Nbd7 {[%emt 0:00:00]} 10. Kh1 {[%emt 0:00:40]} b5 {[%emt 0:00:00]} 11. e5 {[%emt 0:27:00]} dxe5 {[%emt 0:00:00]} 12. Nxe5 {[%emt 0:05:46]} Nxe5 {[%emt 0:00:00]} 13. fxe5 {[%emt 0:00:38]} Qxe5 {[%emt 0:00:00]} 14. Qf3 {[%emt 0:08:53]} Ra7 {[%emt 0:00:00]} 15. Bf4 {[%emt 0:00:34]} Qe6 {[%emt 0:00:00]} 16. Rfe1 {[%emt 0:00:30]} Qd7 {[%emt 0:00:00]} 17. Rad1 {[%emt 0:00:35]} Bb7 {[%emt 0:02:17]} 18. Qe2 {[%emt 0:16:43]} O-O {[%emt 0:00:23]} 19. Bxb5 {[%emt 0:05:08]} Qg4 {[%emt 0:03:47]} 20. Be3 {[%emt 0:00:30]} Raa8 {[%emt 0:00:59]} 21. Ba4 {[%emt 0:02:49]} Qxe2 {[%emt 0:00:42]} 22. Rxe2 {[%emt 0:00:08]} e6 {[%emt 0:01:11]} 23. Bb3 {[%emt 0:06:46]} Rfd8 {[%emt 0:00:33]} 24. Rf1 {[%emt 0:00:34]} Nd5 {[%emt 0:00:33]} 25. Nxd5 {[%emt 0:02:41]} Bxd5 {[%emt 0:00:16]} 26. c4 {[%emt 0:02:46]} Bc6 {[%emt 0:00:16]} 27. Ref2 {[%emt 0:00:45]} f5 {[%emt 0:00:51]} 28. Bb6 {[%emt 0:00:47]} Rd7 {[%emt 0:00:38]} 29. c5 {[%emt 0:00:11]} Re8 {[%emt 0:00:30]} 30. Re1 {[%emt 0:00:33]} Kf8 {[%emt 0:00:28]} 31. Bc4 {[%emt 0:01:08]} Bb5 {[%emt 0:00:31]} 32. Bxb5 {[%emt 0:01:30]} axb5 {[%emt 0:00:02]} 33. c6 {[%emt 0:03:14]} Rd5 {[%emt 0:00:08]} 34. Rc2 {[%emt 0:00:50]} Kf7 {[%emt 0:01:55]} 35. b3 {[%emt 0:00:15]} Bd4 {[%emt 0:00:00]} 36. Bxd4 {[%emt 0:02:03]} Rxd4 {[%emt 0:00:00]} 37. Kg1 {[%emt 0:00:01]} Rc8 {[%emt 0:00:17]} 38. Re5 {[%emt 0:00:16]} Rd5 {[%emt 0:01:01]} 39. Rxd5 {[%emt 0:02:36]} exd5 {[%emt 0:00:01]} 40. Rc5 {[%emt 0:00:13]} Ke6 {[%emt 0:00:59]} 41. Rxb5 {[%emt 0:00:29]} Rxc6 {[%emt 0:00:02]} 42. Rb7 {[%emt 0:00:00]} h5 {[%emt 0:00:35]} 43. a4 {[%emt 0:00:13]} d4 {[%emt 0:00:22]} 44. a5 {[%emt 0:01:46]} Kd5 {[%emt 0:00:34]} 45. Rb5+ {[%emt 0:04:10]} Ke4 {[%emt 0:00:22]} 46. Rb6 {[%emt 0:05:35]} Rc1+ {[%emt 0:00:43]} 47. Kf2 {[%emt 0:00:00]} Rc2+ {[%emt 0:00:06]} 48. Kf1 {[%emt 0:00:00]} d3 {[%emt 0:01:16]} 49. a6 {[%emt 0:00:00]} Rc1+ {[%emt 0:00:32]} 50. Kf2 {[%emt 0:00:00]} d2 {[%emt 0:00:33]} 51. a7 {[%emt 0:00:00]} Ra1 {[%emt 0:00:35]} 52. Rd6 {[%emt 0:00:00]} Rxa7 {[%emt 0:00:10]} 53. Rxd2 {[%emt 0:00:00]} Rb7 {[%emt 0:00:17]} 54. Re2+ {[%emt 0:01:31]} Kd5 {[%emt 0:00:38]} 55. Re3 {[%emt 0:00:22]} Rb6 {[%emt 0:00:00]} 1/2-1/2

[Event "Western Asian Girls Chess-ch 2023"]
[Site "Colombo"]
[Date "2023.12.03"]
[Round "6.4"]
[White "Sasvatha A"]
[Black "Shohradova, Lala"]
[Result "0-1"]
[ECO "D13"]
[WhiteElo "1568"]
[BlackElo "1846"]
[Annotator "NA RC"]
[PlyCount "96"]
[EventDate "2023.11.30"]
[EventCountry "SRI"]
[SourceTitle "playchess.com"]
[Source "ChessBase"]
[SourceQuality "1"]
[TimeControl "5400+30"]

1. d4 {[%emt 0:00:22]} Nf6 {[%emt 0:00:02]} 2. Nf3 {[%emt 0:00:07]} c5 {[%emt 0:01:11]} 3. c3 {[%emt 0:01:48]} d5 {[%emt 0:02:02]} 4. Bf4 {[%emt 0:01:19]} cxd4 {[%emt 0:05:14]} 5. cxd4 {[%emt 0:00:11]} Qb6 {[%emt 0:02:16]} 6. Qb3 {[%emt 0:01:06]} Qxb3 {[%emt 0:05:21]} 7. axb3 {[%emt 0:00:09]} Nc6 {[%emt 0:00:06]} 8. e3 {[%emt 0:01:27]} e6 {[%emt 0:04:09]} 9. Nc3 {[%emt 0:06:17]} Bb4 {[%emt 0:01:54]} 10. Bd3 {[%emt 0:00:09]} Bd7 {[%emt 0:03:54]} 11. O-O {[%emt 0:12:51]} Nh5 {[%emt 0:01:56]} 12. Bc7 {[%emt 0:00:36]} Rc8 {[%emt 0:09:10]} 13. Nb5 {[%emt 0:05:27]} Ke7 {[%emt 0:00:36]} 14. Bg3 {[%emt 0:10:46]} a6 {[%emt 0:03:13]} 15. Na3 {[%emt 0:01:01]} Nxg3 {[%emt 0:00:27]} 16. hxg3 {[%emt 0:00:06]} f5 {[%emt 0:02:33]} 17. Nc2 {[%emt 0:03:36]} Bd6 {[%emt 0:01:04]} 18. Rfd1 {[%emt 0:00:46]} Kf6 {[%emt 0:01:03]} 19. b4 {[%emt 0:03:01]} Na7 {[%emt 0:08:38]} 20. Nd2 {[%emt 0:11:23]} Bb5 {[%emt 0:03:48]} 21. Bxb5 {[%emt 0:01:48]} Rxc2 {[%emt 0:00:28]} 22. Bd3 {[%emt 0:16:02]} Rxb2 {[%emt 0:00:08]} 23. b5 {[%emt 0:02:32]} Nxb5 {[%emt 0:04:03]} 24. Rab1 {[%emt 0:00:33]} Rb4 {[%emt 0:22:28]} 25. Bxb5 {[%emt 0:02:29]} axb5 {[%emt 0:00:11]} 26. Rxb4 {[%emt 0:02:39]} Bxb4 {[%emt 0:00:02]} 27. Nf3 {[%emt 0:00:53]} Bc3 {[%emt 0:01:28]} 28. Rb1 {[%emt 0:00:09]} b4 {[%emt 0:00:55]} 29. Ne5 {[%emt 0:00:45]} Ra8 {[%emt 0:00:29]} 30. Nd3 {[%emt 0:00:09]} Ra4 {[%emt 0:00:25]} 31. Nc5 {[%emt 0:03:12]} Ra3 {[%emt 0:03:17]} 32. Nxb7 {[%emt 0:07:38]} e5 {[%emt 0:09:16]} 33. Nd6 {[%emt 0:02:39]} exd4 {[%emt 0:00:49]} 34. exd4 {[%emt 0:02:15]} Ra1 {[%emt 0:03:04]} 35. Rxa1 {[%emt 0:00:11]} Bxa1 {[%emt 0:00:04]} 36. Nb5 {[%emt 0:00:07]} b3 {[%emt 0:00:27]} 37. Kf1 {[%emt 0:00:32]} Bxd4 {[%emt 0:00:08]} 38. Ke2 {[%emt 0:00:21]} Bc5 {[%emt 0:00:40]} 39. f3 {[%emt 0:00:47]} b2 {[%emt 0:01:53]} 40. Nc3 {[%emt 0:00:09]} Bd4 {[%emt 0:00:25]} 41. Nb1 {[%emt 0:00:29]} Kg5 {[%emt 0:00:02]} 42. Kd3 {[%emt 0:00:19]} Bf6 {[%emt 0:00:09]} 43. Kc2 {[%emt 0:01:10]} f4 {[%emt 0:00:17]} 44. gxf4+ {[%emt 0:00:32]} Kxf4 {[%emt 0:00:02]} 45. Nd2 {[%emt 0:00:13]} Kg3 {[%emt 0:00:13]} 46. Nf1+ {[%emt 0:00:05]} Kxg2 {[%emt 0:00:09]} 47. Ne3+ {[%emt 0:00:04]} Kxf3 {[%emt 0:00:04]} 48. Nxd5 {[%emt 0:00:05]} h5 {[%emt 0:00:04]} 0-1

[Event "Western Asian Girls Chess-ch 2023"]
[Site "Colombo"]
[Date "2023.12.03"]
[Round "6.5"]
[White "Sagar Siya"]
[Black "Sanudula, K M Dahamdi"]
[Result "1/2-1/2"]
[ECO "B01"]
[WhiteElo "1537"]
[BlackElo "1709"]
[Annotator "NA RC"]
[PlyCount "68"]
[EventDate "2023.11.30"]
[EventCountry "SRI"]
[SourceTitle "playchess.com"]
[Source "ChessBase"]
[SourceQuality "1"]
[TimeControl "5400+30"]

1. e4 {[%emt 0:00:02]} d5 {[%emt 0:10:07]} 2. exd5 {[%emt 0:00:10]} Qxd5 {[%emt 0:00:04]} 3. Nc3 {[%emt 0:00:16]} Qa5 {[%emt 0:00:05]} 4. d4 {[%emt 0:00:10]} Nf6 {[%emt 1:22:14]} 5. Nf3 {[%emt 0:00:38]} Bf5 {[%emt 0:00:00]} 6. Bd2 {[%emt 0:00:58]} e6 {[%emt 0:00:00]} 7. Bc4 {[%emt 0:00:13]} c6 {[%emt 0:00:00]} 8. Nd5 {[%emt 0:00:23]} Qd8 {[%emt 0:00:00]} 9. Nxf6+ {[%emt 0:00:08]} gxf6 {[%emt 0:00:00]} 10. c3 {[%emt 0:00:15]} Rg8 {[%emt 0:00:00]} 11. Nh4 {[%emt 0:01:57]} Bg4 {[%emt 0:00:00]} 12. f3 {[%emt 0:02:54]} f5 {[%emt 0:00:00]} 13. g3 {[%emt 0:01:59]} Bh5 {[%emt 0:00:00]} 14. Qe2 {[%emt 0:02:32]} Be7 {[%emt 0:00:00]} 15. Ng2 {[%emt 0:02:08]} Qb6 {[%emt 0:00:00]} 16. O-O-O {[%emt 0:04:05]} Nd7 {[%emt 0:00:00]} 17. Nf4 {[%emt 0:03:48]} Bg6 {[%emt 0:00:00]} 18. Nxe6 {[%emt 0:12:16]} fxe6 {[%emt 0:00:00]} 19. Qxe6 {[%emt 0:00:19]} Rg7 {[%emt 0:00:00]} 20. Bh6 {[%emt 0:04:25]} Bf7 {[%emt 0:00:00]} 21. Qxf5 {[%emt 0:07:52]} Bxc4 {[%emt 0:00:00]} 22. Bxg7 {[%emt 0:00:15]} O-O-O {[%emt 0:00:00]} 23. Rhe1 {[%emt 0:02:07]} Bd6 {[%emt 0:00:00]} 24. Be5 {[%emt 0:03:32]} Qa5 {[%emt 0:00:00]} 25. Qxh7 {[%emt 0:03:12]} Bf8 {[%emt 0:00:00]} 26. f4 {[%emt 0:07:01]} Bxa2 {[%emt 0:00:00]} 27. Qc2 {[%emt 0:06:13]} Qd5 {[%emt 0:00:00]} 28. Qe4 {[%emt 0:02:57]} Qf7 {[%emt 0:00:00]} 29. Rd2 {[%emt 0:06:15]} Nb6 {[%emt 0:00:00]} 30. g4 {[%emt 0:02:16]} Be6 {[%emt 0:00:00]} 31. h3 {[%emt 0:04:33]} Bd5 {[%emt 0:00:00]} 32. Qf5+ {[%emt 0:01:36]} Qxf5 {[%emt 0:00:00]} 33. gxf5 {[%emt 0:00:05]} Bh6 {[%emt 0:00:00]} 34. Rf2 {[%emt 0:01:21]} Rf8 {[%emt 0:00:00]} 1/2-1/2

[Event "Western Asian Girls Chess-ch 2023"]
[Site "Colombo"]
[Date "2023.12.03"]
[Round "6.6"]
[White "Rathnayake, R M Dulinma Hemalni"]
[Black "Gamage, Desandhi Dhihansa"]
[Result "0-1"]
[ECO "B90"]
[WhiteElo "1532"]
[BlackElo "1608"]
[Annotator "NA RC"]
[PlyCount "68"]
[EventDate "2023.11.30"]
[EventCountry "SRI"]
[SourceTitle "playchess.com"]
[Source "ChessBase"]
[SourceQuality "1"]
[TimeControl "5400+30"]

1. e4 {[%emt 0:01:11]} c5 {[%emt 0:00:06]} 2. Nf3 {[%emt 0:00:04]} d6 {[%emt 0:00:03]} 3. d4 {[%emt 0:00:04]} cxd4 {[%emt 0:00:03]} 4. Nxd4 {[%emt 0:00:08]} Nf6 {[%emt 1:32:18]} 5. Nc3 {[%emt 0:00:04]} a6 {[%emt 0:00:00]} 6. Be3 {[%emt 0:00:12]} e5 {[%emt 0:00:00]} 7. Nb3 {[%emt 0:00:03]} Be6 {[%emt 0:00:00]} 8. f3 {[%emt 0:00:04]} h5 {[%emt 0:00:00]} 9. Qd2 {[%emt 0:00:05]} Nbd7 {[%emt 0:00:00]} 10. Nd5 {[%emt 0:00:03]} Bxd5 {[%emt 0:00:00]} 11. exd5 {[%emt 0:00:06]} g6 {[%emt 0:00:00]} 12. O-O-O {[%emt 0:00:05]} Bg7 {[%emt 0:00:00]} 13. Kb1 {[%emt 0:01:00]} Rc8 {[%emt 0:00:00]} 14. Be2 {[%emt 0:15:38]} b5 {[%emt 0:00:00]} 15. Na5 {[%emt 0:04:07]} Nb6 {[%emt 0:00:00]} 16. Nc6 {[%emt 0:08:07]} Qc7 {[%emt 0:00:00]} 17. Nb4 {[%emt 0:02:59]} Qb7 {[%emt 0:00:00]} 18. h3 {[%emt 0:19:34]} Nc4 {[%emt 0:00:00]} 19. Bxc4 {[%emt 0:00:30]} bxc4 {[%emt 0:00:00]} 20. Nc6 {[%emt 0:02:16]} O-O {[%emt 0:00:00]} 21. Qb4 {[%emt 0:13:02]} Qd7 {[%emt 0:00:00]} 22. Qxc4 {[%emt 0:03:30]} Nxd5 {[%emt 0:00:00]} 23. Qxd5 {[%emt 0:00:14]} Rxc6 {[%emt 0:00:00]} 24. g4 {[%emt 0:03:52]} h4 {[%emt 0:00:00]} 25. Rh2 {[%emt 0:06:05]} Rb8 {[%emt 0:00:00]} 26. Rd3 {[%emt 0:02:21]} Rb5 {[%emt 0:00:00]} 27. Qe4 {[%emt 0:01:28]} d5 {[%emt 0:00:00]} 28. Qa4 {[%emt 0:03:22]} Qc7 {[%emt 0:00:00]} 29. Rb3 {[%emt 0:02:56]} d4 {[%emt 0:00:00]} 30. Bg1 {[%emt 0:00:30]} Rbc5 {[%emt 0:00:00]} 31. Rb4 {[%emt 0:05:21]} e4 {[%emt 0:00:00]} 32. Qb3 {[%emt 0:03:17]} Qg3 {[%emt 0:00:00]} 33. Rb8+ {[%emt 0:01:35]} Kh7 {[%emt 0:00:00]} 34. Rh1 {[%emt 0:00:33]} Qe1# {[%emt 0:15:00]} 0-1

[Event "Western Asian Girls Chess-ch 2023"]
[Site "Colombo"]
[Date "2023.12.03"]
[Round "6.7"]
[White "Gunasekara, K P K Hesara"]
[Black "Ahmed, Walijah"]
[Result "1-0"]
[ECO "B42"]
[WhiteElo "1352"]
[BlackElo "1858"]
[Annotator "NA RC"]
[PlyCount "147"]
[EventDate "2023.11.30"]
[EventCountry "SRI"]
[SourceTitle "playchess.com"]
[Source "ChessBase"]
[SourceQuality "1"]
[TimeControl "5400+30"]

1. e4 {[%emt 0:00:14]} c5 {[%emt 0:00:09]} 2. Nf3 {[%emt 0:01:01]} e6 {[%emt 0:00:09]} 3. d4 {[%emt 0:00:22]} cxd4 {[%emt 0:00:06]} 4. Nxd4 {[%emt 0:00:06]} a6 {[%emt 0:00:29]} 5. Bd3 {[%emt 0:01:50]} Nc6 {[%emt 1:32:07]} 6. Nxc6 {[%emt 0:02:17]} bxc6 {[%emt 0:00:00]} 7. O-O {[%emt 0:00:32]} d5 {[%emt 0:00:00]} 8. c4 {[%emt 0:03:02]} Nf6 {[%emt 0:00:00]} 9. Qa4 {[%emt 0:05:04]} Bd7 {[%emt 0:00:00]} 10. e5 {[%emt 0:00:42]} Ng4 {[%emt 0:00:00]} 11. cxd5 {[%emt 0:05:16]} Nxe5 {[%emt 0:00:00]} 12. dxe6 {[%emt 0:01:11]} Bxe6 {[%emt 0:00:00]} 13. Be4 {[%emt 0:05:28]} Rc8 {[%emt 0:00:00]} 14. Bf4 {[%emt 0:11:56]} Bd6 {[%emt 0:00:00]} 15. Rd1 {[%emt 0:09:21]} Qc7 {[%emt 0:00:00]} 16. Nc3 {[%emt 0:02:43]} O-O {[%emt 0:00:00]} 17. Ne2 {[%emt 0:02:26]} Rfd8 {[%emt 0:00:00]} 18. Qc2 {[%emt 0:12:28]} h6 {[%emt 0:00:00]} 19. Rac1 {[%emt 0:01:48]} a5 {[%emt 0:00:00]} 20. Bg3 {[%emt 0:03:36]} Bxa2 {[%emt 0:00:00]} 21. b3 {[%emt 0:01:31]} Ba3 {[%emt 0:00:00]} 22. Ra1 {[%emt 0:00:30]} Rxd1+ {[%emt 0:00:00]} 23. Rxd1 {[%emt 0:01:54]} Rd8 {[%emt 0:00:00]} 24. Rxd8+ {[%emt 0:02:06]} Qxd8 {[%emt 0:00:00]} 25. Bxe5 {[%emt 0:00:22]} Qe7 {[%emt 0:00:00]} 26. Qxa2 {[%emt 0:03:13]} Qxe5 {[%emt 0:00:13]} 27. Qxa3 {[%emt 0:00:27]} Qxe4 {[%emt 0:00:11]} 28. Qb2 {[%emt 0:00:22]} c5 {[%emt 0:00:38]} 29. h3 {[%emt 0:00:53]} c4 {[%emt 0:00:17]} 30. bxc4 {[%emt 0:01:09]} Qxc4 {[%emt 0:00:05]} 31. Nc3 {[%emt 0:00:17]} Qd4 {[%emt 0:01:46]} 32. Qb3 {[%emt 0:01:27]} Qd2 {[%emt 0:01:01]} 33. g3 {[%emt 0:00:52]} Qe1+ {[%emt 0:01:05]} 34. Kg2 {[%emt 0:00:10]} Qe5 {[%emt 0:00:11]} 35. Qc4 {[%emt 0:01:24]} g6 {[%emt 0:00:45]} 36. Na4 {[%emt 0:01:21]} Qe8 {[%emt 0:01:14]} 37. Kf3 {[%emt 0:01:10]} Qe1 {[%emt 0:00:47]} 38. Qc8+ {[%emt 0:01:58]} Kh7 {[%emt 0:00:21]} 39. Qd7 {[%emt 0:00:35]} Kg7 {[%emt 0:01:09]} 40. Qd4+ {[%emt 0:01:25]} Kh7 {[%emt 0:01:32]} 41. Qc4 {[%emt 0:01:25]} Kg8 {[%emt 0:00:37]} 42. Kg2 {[%emt 0:02:55]} Qe5 {[%emt 0:01:09]} 43. Nb6 {[%emt 0:00:50]} Qd6 {[%emt 0:01:24]} 44. Qb5 {[%emt 0:00:20]} Qd2 {[%emt 0:00:51]} 45. Nc4 {[%emt 0:01:20]} Qd3 {[%emt 0:01:36]} 46. Qe8+ {[%emt 0:00:36]} Kg7 {[%emt 0:00:53]} 47. Qe5+ {[%emt 0:00:28]} Kg8 {[%emt 0:01:51]} 48. Nxa5 {[%emt 0:00:12]} Qa6 {[%emt 0:00:10]} 49. Qd5 {[%emt 0:00:24]} h5 {[%emt 0:00:28]} 50. Nc4 {[%emt 0:00:56]} Qf6 {[%emt 0:00:32]} 51. Nd6 {[%emt 0:00:50]} Qe7 {[%emt 0:01:01]} 52. Ne4 {[%emt 0:00:19]} Kh7 {[%emt 0:00:27]} 53. Kf3 {[%emt 0:11:56]} Qa7 {[%emt 0:00:39]} 54. Nd6 {[%emt 0:00:00]} Kg8 {[%emt 0:00:31]} 55. Ne4 {[%emt 0:00:00]} Kh7 {[%emt 0:00:30]} 56. Qe5 {[%emt 0:00:00]} Qa3+ {[%emt 0:00:31]} 57. Kg2 {[%emt 0:00:00]} Qa8 {[%emt 0:00:33]} 58. Kh2 {[%emt 0:00:00]} Qa2 {[%emt 0:00:32]} 59. Nf6+ {[%emt 0:00:00]} Kh6 {[%emt 0:00:26]} 60. Kg2 {[%emt 0:00:00]} Qa8+ {[%emt 0:00:18]} 61. Kg1 {[%emt 0:00:00]} Qf8 {[%emt 0:00:50]} 62. g4 {[%emt 0:00:00]} hxg4 {[%emt 0:00:24]} 63. hxg4 {[%emt 0:00:00]} g5 {[%emt 0:00:22]} 64. Nh5 {[%emt 0:00:00]} Qg8 {[%emt 0:00:25]} 65. Qf6+ {[%emt 0:00:00]} Kh7 {[%emt 0:00:28]} 66. Ng3 {[%emt 0:06:30]} Qg6 {[%emt 0:00:59]} 67. Qxg6+ {[%emt 0:00:00]} Kxg6 {[%emt 0:01:18]} 68. Kg2 {[%emt 0:00:00]} Kf6 {[%emt 0:00:00]} 69. Kf3 {[%emt 0:00:00]} Ke5 {[%emt 0:01:00]} 70. Ke3 f6 {[%emt 0:00:00]} 71. f3 {[%emt 0:00:00]} Kd5 {[%emt 0:00:00]} 72. f4 {[%emt 0:00:00]} gxf4+ {[%emt 0:00:00]} 73. Kxf4 {[%emt 0:00:00]} Ke6 {[%emt 0:02:00]} 74. Nh5 {[%emt 0:00:00]} 1-0

[Event "Western Asian Girls Chess-ch 2023"]
[Site "Colombo"]
[Date "2023.12.03"]
[Round "6.8"]
[White "Agajanova, Meryem"]
[Black "Alwis, H Sandithi Kusalya"]
[Result "1/2-1/2"]
[ECO "E04"]
[WhiteElo "1854"]
[BlackElo "1364"]
[Annotator "NA RC"]
[PlyCount "110"]
[EventDate "2023.11.30"]
[EventCountry "SRI"]
[SourceTitle "playchess.com"]
[Source "ChessBase"]
[SourceQuality "1"]
[TimeControl "5400+30"]

1. d4 {[%emt 0:00:02]} d5 {[%emt 0:00:05]} 2. c4 {[%emt 0:00:11]} c6 {[%emt 0:00:04]} 3. Nf3 {[%emt 0:00:37]} Nf6 {[%emt 0:00:19]} 4. g3 {[%emt 0:00:15]} e6 {[%emt 0:01:35]} 5. Bg2 {[%emt 0:00:33]} dxc4 {[%emt 0:00:23]} 6. O-O {[%emt 0:03:36]} Nbd7 {[%emt 0:04:25]} 7. Qc2 {[%emt 0:02:28]} Bd6 {[%emt 0:02:49]} 8. Qxc4 {[%emt 0:01:42]} e5 {[%emt 0:01:10]} 9. Rd1 {[%emt 0:04:00]} Qe7 {[%emt 0:01:37]} 10. Nc3 {[%emt 0:01:07]} O-O {[%emt 0:03:22]} 11. Bg5 {[%emt 0:03:56]} h6 {[%emt 0:09:45]} 12. Bxf6 {[%emt 0:06:08]} Nxf6 {[%emt 0:00:57]} 13. dxe5 {[%emt 0:00:27]} Bxe5 {[%emt 0:00:13]} 14. Nxe5 {[%emt 0:00:11]} Qxe5 {[%emt 0:00:09]} 15. Rd2 {[%emt 0:00:48]} Be6 {[%emt 0:05:27]} 16. Qb4 {[%emt 0:01:43]} Qc7 {[%emt 0:01:01]} 17. Rad1 {[%emt 0:01:13]} a5 {[%emt 0:02:16]} 18. Qd6 {[%emt 0:05:27]} Rac8 {[%emt 0:08:45]} 19. b3 {[%emt 0:04:44]} b5 {[%emt 0:06:04]} 20. Qxc7 {[%emt 0:06:54]} Rxc7 {[%emt 0:02:27]} 21. e4 {[%emt 0:00:49]} b4 {[%emt 0:08:54]} 22. Na4 {[%emt 0:06:50]} c5 {[%emt 0:02:46]} 23. e5 {[%emt 0:05:54]} Ng4 {[%emt 0:12:41]} 24. Re1 {[%emt 0:02:10]} h5 {[%emt 0:00:24]} 25. Nb2 {[%emt 0:04:33]} Rfc8 {[%emt 0:09:30]} 26. h3 {[%emt 0:07:16]} Nh6 {[%emt 0:00:16]} 27. Rc1 {[%emt 0:03:48]} Nf5 {[%emt 0:02:44]} 28. Be4 {[%emt 0:01:39]} Nd4 {[%emt 0:00:37]} 29. Kg2 {[%emt 0:00:46]} g6 {[%emt 0:04:10]} 30. Na4 {[%emt 0:05:18]} Kg7 {[%emt 0:06:02]} 31. f4 {[%emt 0:08:30]} Nxb3 {[%emt 0:02:31]} 32. axb3 {[%emt 0:02:42]} Bxb3 {[%emt 0:00:09]} 33. Nb6 {[%emt 0:02:09]} Rb8 {[%emt 0:00:15]} 34. Nd5 {[%emt 0:02:10]} Bxd5 {[%emt 0:01:16]} 35. Rxd5 {[%emt 0:01:03]} b3 {[%emt 0:00:56]} 36. Rdxc5 {[%emt 0:03:32]} Rxc5 {[%emt 0:00:44]} 37. Rxc5 {[%emt 0:00:04]} b2 {[%emt 0:00:11]} 38. Rxa5 {[%emt 0:00:28]} b1=Q {[%emt 0:00:12]} 39. Bxb1 {[%emt 0:00:04]} Rxb1 {[%emt 0:00:07]} 40. Ra3 {[%emt 0:00:09]} Rb4 {[%emt 0:00:52]} 41. Kf3 {[%emt 0:01:20]} Rc4 {[%emt 0:00:28]} 42. g4 {[%emt 0:01:32]} hxg4+ {[%emt 0:00:21]} 43. Kxg4 {[%emt 0:00:42]} Rc1 {[%emt 0:00:45]} 44. f5 {[%emt 0:01:52]} gxf5+ {[%emt 0:01:36]} 45. Kxf5 {[%emt 0:00:03]} Rf1+ {[%emt 0:00:08]} 46. Kg4 {[%emt 0:00:37]} Kg6 {[%emt 0:00:24]} 47. Ra6+ {[%emt 0:00:52]} Kg7 {[%emt 0:00:11]} 48. h4 {[%emt 0:00:53]} Rg1+ {[%emt 0:00:10]} 49. Kh5 {[%emt 0:00:24]} Re1 {[%emt 0:01:55]} 50. Ra5 {[%emt 0:00:00]} Rg1 {[%emt 0:00:17]} 51. Ra4 {[%emt 0:01:11]} Re1 {[%emt 0:00:48]} 52. Rg4+ {[%emt 0:00:23]} Kh7 {[%emt 0:00:13]} 53. Rg5 {[%emt 0:00:01]} Re4 {[%emt 0:00:03]} 54. Rf5 {[%emt 0:00:38]} Kg7 {[%emt 0:00:24]} 55. Kg5 {[%emt 0:00:00]} Rxe5 {[%emt 0:00:39]} 1/2-1/2

[Event "Western Asian Girls Chess-ch 2023"]
[Site "Colombo"]
[Date "2023.12.03"]
[Round "7.1"]
[White "Bhagyashree Patil"]
[Black "Sultanbek, Zeinep"]
[Result "1/2-1/2"]
[ECO "E70"]
[WhiteElo "1830"]
[BlackElo "2008"]
[Annotator "NA"]
[PlyCount "23"]
[EventDate "2023.11.30"]
[EventCountry "SRI"]
[SourceTitle "playchess.com"]
[Source "ChessBase"]
[SourceQuality "1"]
[TimeControl "5400+30"]

1. d4 {[%emt 0:00:03]} Nf6 {[%emt 0:00:05]} 2. Nf3 {[%emt 0:00:19]} g6 {[%emt 0:00:40]} 3. c4 {[%emt 0:00:04]} Bg7 {[%emt 0:00:05]} 4. Nc3 {[%emt 0:00:03]} O-O {[%emt 0:00:05]} 5. e4 {[%emt 0:00:04]} c6 {[%emt 0:01:10]} 6. d5 {[%emt 0:07:00]} cxd5 {[%emt 0:00:54]} 7. exd5 {[%emt 0:05:52]} Re8 {[%emt 0:00:05]} 8. Be2 {[%emt 0:00:05]} Rf8 {[%emt 0:00:07]} 9. Bf1 {[%emt 0:00:03]} Re8 {[%emt 0:00:03]} 10. Be2 {[%emt 0:00:02]} Rf8 {[%emt 0:00:03]} 11. Bf1 {[%emt 0:00:03]} Re8 {[%emt 0:00:06]} 12. Ng1 {[%emt 1:22:52]} 1/2-1/2